fUST/lending_fUST_20250321
["ID","MTS","AMOUNT","RATE_DAILY","PERIOD"]
[356491265,1742529043569,-1559.04,0.00032876,21]
[356491266,1742529043579,-258.32577636,0.00032876,21]
[356491267,1742529043588,-500.0,0.00032876,21]
[356491268,1742529043598,-2743.6,0.00032876,21]
[356491269,1742529043607,-1268.62,0.00032876,21]
[356491270,1742529043616,-1617.86,0.00032876,21]
[356491271,1742529043626,-500.0,0.00032876,21]
[356491272,1742529043635,-509.17,0.00032876,21]
[356491273,1742529043645,-500.0,0.00032876,21]
[356491274,1742529043655,-500.0,0.00032876,21]
[356491275,1742529043665,-500.0,0.00032876,21]
[356491276,1742529043675,-1152.15,0.00032876,21]
[356491277,1742529043684,-1186.56,0.00032876,21]
[356491279,1742529043694,-500.0,0.00032876,21]
[356491280,1742529043703,-500.0,0.00032876,21]
[356491281,1742529043713,-500.0,0.00032876,21]
[356491282,1742529043722,-2766.75,0.00032876,21]
[356491284,1742529043732,-160.0,0.00032876,7]
[356491286,1742529043742,-500.0,0.00032876,21]
[356491289,1742529043752,-500.0,0.00032876,21]
[356491291,1742529043761,-3046.26,0.00032876,21]
[356491294,1742529043771,-500.0,0.00032876,21]
[356491296,1742529043780,-500.0,0.00032876,120]
[356491298,1742529043790,-500.0,0.00032876,7]
[356491300,1742529043799,-500.0,0.00032876,21]
[356491302,1742529043808,-500.0,0.00032876,21]
[356491304,1742529043818,-500.0,0.00032876,21]
[356491306,1742529043827,-500.0,0.00032876,21]
[356491308,1742529043836,-815.69,0.00032876,21]
[356491310,1742529043846,-500.0,0.00032876,21]
[356491312,1742529043855,-605.15,0.00032876,21]
[356491314,1742529043864,-500.0,0.00032876,21]
[356491316,1742529043873,-1630.71,0.00032876,21]
[356491343,1742529044159,-219.32671239,0.00032876,21]
[356491344,1742529044179,-500.0,0.00032876,21]
[356491345,1742529044188,-500.0,0.00032876,21]
[356491346,1742529044198,-612.79,0.00032876,21]
[356491347,1742529044207,-500.0,0.00032876,7]
[356491348,1742529044216,-500.0,0.00032876,21]
[356491349,1742529044225,-500.0,0.00032876,21]
[356491350,1742529044235,-2534.79,0.00032876,21]
[356491351,1742529044245,-1488.1,0.00032876,21]
[356491352,1742529044255,-500.0,0.00032876,21]
[356491353,1742529044264,-500.0,0.00032876,21]
[356491354,1742529044273,-500.0,0.00032876,21]
[356491355,1742529044283,-500.0,0.00032876,21]
[356491356,1742529044292,-22996.38,0.00032876,21]
[356491357,1742529044301,-500.0,0.00032876,21]
[356491358,1742529044310,-500.0,0.00032876,21]
[356491359,1742529044319,-1449.69,0.00032876,21]
[356491360,1742529044329,-4888.48,0.00032876,21]
[356491361,1742529044338,-1329.78,0.00032876,21]
[356491362,1742529044348,-500.0,0.00032876,21]
[356491363,1742529044357,-554.16,0.00032876,21]
[356491364,1742529044366,-706.02,0.00032876,21]
[356491365,1742529044375,-500.0,0.00032876,21]
[356491366,1742529044385,-1823.62,0.00032876,21]
[356491367,1742529044395,-502.12,0.00032876,21]
[356491368,1742529044404,-2612.21,0.00032876,21]
[356491369,1742529044414,-610.63,0.00032876,21]
[356491370,1742529044423,-953.35,0.00032876,21]
[356491371,1742529044432,-500.0,0.00032876,21]
[356491372,1742529044441,-1399.3,0.00032876,21]
[356491373,1742529044450,-1512.18,0.00032876,21]
[356491374,1742529044459,-500.0,0.00032876,21]
[356491375,1742529044469,-500.0,0.00032876,21]
[356491376,1742529044478,-500.0,0.00032876,21]
[356491377,1742529044487,-1138.99,0.00032876,21]
[356491378,1742529044496,-500.0,0.00032876,21]
[356491379,1742529044505,-177.50121898,0.00032876,21]
[356491380,1742529044515,-890.27,0.00032876,21]
[356491381,1742529044524,-500.0,0.00032876,21]
[356491382,1742529044533,-540.51596523,0.00032876,21]
[356491383,1742529044543,-500.0,0.00032876,21]
[356491384,1742529044553,-562.36,0.00032876,21]
[356491385,1742529044562,-606.27,0.00032876,21]
[356491386,1742529044572,-500.0,0.00032876,21]
[356491387,1742529044581,-260.24011333,0.00032876,21]
[356491388,1742529044591,-737.88,0.00032876,21]
[356491389,1742529044600,-2645.47,0.00032876,21]
[356491390,1742529044610,-500.0,0.00032876,21]
[356491391,1742529044619,-3496.47,0.00032876,21]
[356491392,1742529044628,-815.63,0.00032876,21]
[356491393,1742529044637,-1187.08,0.00032876,21]
[356491394,1742529044646,-722.87,0.00032876,21]
[356491395,1742529044656,-2036.22409668,0.00032876,21]
[356491396,1742529045466,-1258.42590332,0.00032876,21]
[356491397,1742529045476,-655.69,0.00032876,21]
[356491398,1742529045485,-500.0,0.00032876,21]
[356491399,1742529045495,-500.0,0.00032876,21]
[356491400,1742529045504,-1363.54,0.00032876,21]
[356491401,1742529045514,-500.0,0.00032876,21]
[356491402,1742529045523,-1932.24,0.00032876,21]
[356491403,1742529045532,-500.0,0.00032876,21]
[356491404,1742529045541,-2152.41,0.00032876,21]
[356491405,1742529045551,-500.0,0.00032876,21]
[356491406,1742529045560,-500.0,0.00032876,21]
[356491407,1742529045570,-661.83,0.00032876,21]
[356491408,1742529045580,-500.0,0.00032876,21]
[356491409,1742529045589,-758.04,0.00032876,21]
[356491410,1742529045599,-2234.52,0.00032876,21]
[356491411,1742529045608,-500.0,0.00032876,21]
[356491412,1742529045617,-630.35,0.00032876,21]
[356491413,1742529045627,-8021.46195853,0.00032876,21]
[356491414,1742529046460,-5066.78393718,0.00032876,21]
[356491427,1742529621984,-179.23554002,0.00023661,2]
[356491428,1742529622016,-274.42576974,0.00023761,2]
[356491429,1742529622038,-500.0,0.00023761,2]
[356491430,1742529622060,-1252.87852667,0.00023761,2]
[356491431,1742529622082,-500.0,0.00023761,2]
[356491432,1742529622115,-500.0,0.00023761,2]
[356491433,1742529622139,-1252.87852667,0.00023761,2]
[356491434,1742529622161,-500.0,0.00023761,2]
[356491435,1742529622185,-500.0,0.00023761,2]
[356491436,1742529622209,-1252.87852667,0.00023761,2]
[356491437,1742529622232,-1252.87852667,0.00023761,2]
[356491438,1742529622256,-500.0,0.00023761,2]
[356491439,1742529622279,-500.0,0.00023761,2]
[356491440,1742529622301,-1252.87852667,0.00023761,2]
[356491441,1742529622323,-1252.87852667,0.00023761,2]
[356491442,1742529622346,-500.0,0.00023761,2]
[356491443,1742529622368,-500.0,0.00023761,2]
[356491444,1742529622391,-1252.87852667,0.00023761,2]
[356491445,1742529622415,-1252.87852667,0.00023761,2]
[356491446,1742529622439,-230.99541875,0.00023761,2]
[356491447,1742529622462,-604.41221772,0.00023761,2]
[356491448,1742529622495,-187.90284041,0.00023761,2]
[356491449,1742529662878,-289.3791353,0.0002376,2]
[356491450,1742529662902,-1150.76921613,0.0002376,2]
[356491451,1742529662926,-247.88837986,0.0002376,2]
[356491452,1742529662954,-1150.76921613,0.0002376,2]
[356491453,1742529662977,-1150.76921613,0.0002376,2]
[356491454,1742529663000,-1150.76921613,0.0002376,2]
[356491455,1742529663029,-1150.76921613,0.0002376,2]
[356491456,1742529663056,-1150.76921613,0.0002376,2]
[356491457,1742529663080,-1150.76921613,0.0002376,2]
[356491458,1742529663110,-1150.76921613,0.0002376,2]
[356491459,1742529663137,-1150.76921613,0.0002376,2]
[356491460,1742529663164,-1150.76921613,0.0002376,2]
[356491461,1742529663189,-1150.76921613,0.0002376,2]
[356491462,1742529663215,-1150.76921613,0.0002376,2]
[356491463,1742529663240,-1150.76921613,0.0002376,2]
[356491464,1742529663264,-1150.76921613,0.0002376,2]
[356491465,1742529663289,-1150.76921613,0.0002376,2]
[356491466,1742529663314,-1150.76921613,0.0002376,2]
[356491467,1742529663339,-1050.42502676,0.0002376,2]
[356491480,1742530233037,-151.44575712,0.00023656,2]
[356491481,1742530233047,-265.22090955,0.0002366,2]
[356491497,1742530238584,-2004.77909045,0.0002366,2]
[356491499,1742530238594,-300.0,0.00023755,2]
[356491501,1742530238603,-968.14712726,0.00023755,2]
[356491503,1742530238612,-968.14712726,0.00023755,2]
[356491505,1742530238621,-968.14712726,0.00023755,2]
[356491507,1742530238630,-968.14712726,0.00023755,2]
[356491509,1742530238639,-968.14712726,0.00023755,2]
[356491511,1742530238648,-968.14712726,0.00023755,2]
[356491513,1742530238657,-968.14712726,0.00023755,2]
[356491515,1742530238667,-717.11324066,0.00023755,2]
[356491549,1742530240879,-251.0338866,0.00023755,2]
[356491550,1742530240889,-968.14712726,0.00023755,2]
[356491551,1742530240899,-714.39470771,0.00023755,2]
[356491552,1742530240910,-253.75241955,0.00023755,2]
[356491554,1742530240920,-968.14712726,0.00023755,2]
[356491555,1742530240929,-968.14712726,0.00023755,2]
[356491556,1742530240939,-968.14712726,0.00023755,2]
[356491557,1742530240948,-968.14712726,0.00023755,2]
[356491558,1742530240958,-968.14712726,0.00023755,2]
[356491559,1742530240967,-968.14712726,0.00023755,2]
[356491560,1742530240977,-968.14712726,0.00023755,2]
[356491561,1742530240987,-968.14712726,0.00023755,2]
[356491562,1742530240996,-968.14712726,0.00023755,2]
[356491563,1742530241005,-968.14712726,0.00023755,2]
[356491564,1742530241014,-810.0648788,0.00023755,2]
[356491571,1742530243692,-158.08224846,0.00023755,2]
[356491572,1742530243702,-144.15209365,0.00023755,2]
[356491573,1742530243745,-642.81311,0.00023755,2]
[356491574,1742530243757,-181.18192361,0.00023755,2]
[356491575,1742530243766,-968.14712726,0.00023755,2]
[356491576,1742530243776,-968.14712726,0.00023755,2]
[356491577,1742530243785,-968.14712726,0.00023755,2]
[356491578,1742530243794,-968.14712726,0.00023755,2]
[356491579,1742530243804,-480.45514065,0.00023755,2]
[356491580,1742530243815,-487.69198661,0.00023755,2]
[356491581,1742530243824,-968.14712726,0.00023755,2]
[356491582,1742530243834,-231.66088613,0.00023755,2]
[356491603,1742530246981,-736.48624113,0.00023755,2]
[356491604,1742530246991,-968.14712726,0.00023755,2]
[356491605,1742530247000,-968.14712726,0.00023755,2]
[356491606,1742530247010,-781.97105453,0.00023755,2]
[356491607,1742530320888,160.0,0.0002,3]
[356491608,1742530573767,382.265251,0.000188,30]
[356491609,1742530575554,-223.57034363,0.000208,30]
[356491610,1742530724276,177.666717,0.00010959,2]
[356491616,1742531313483,1408.53477858,0.000155,2]
[356491617,1742531319347,30010.86001848,0.0001525,2]
[356491650,1742531431996,-276.429656,0.000228,30]
[356491651,1742531432008,-223.57034363,0.0002339,2]
[356491652,1742531432018,-2018.017559,0.00024,21]
[356491653,1742531432033,-300.0,0.00024106,2]
[356491654,1742531432044,-24900.0,0.00024107,2]
[356491655,1742531432054,-195.90798617,0.00024596,2]
[356491665,1742531437677,-451.59167683,0.00024596,2]
[356491667,1742531437687,-250.0,0.000248,30]
[356491668,1742531437697,-195.81625952,0.00025894,2]
[356491669,1742531437707,-454.8633264,0.00025895,2]
[356491670,1742531437718,-295.07403056,0.00025896,3]
[356491671,1742531437732,-658.5073768,0.00025896,3]
[356491672,1742531437742,-500.0,0.00025993,2]
[356491673,1742531437751,-155.15383115,0.00025993,2]
[356491674,1742531437760,-974.8998323,0.00025993,2]
[356491675,1742531437770,-974.8998323,0.00025993,2]
[356491676,1742531437779,-974.8998323,0.00025993,2]
[356491677,1742531437789,-974.8998323,0.00025993,2]
[356491678,1742531437802,-974.8998323,0.00025993,2]
[356491679,1742531437812,-974.8998323,0.00025993,2]
[356491680,1742531437822,-974.8998323,0.00025993,2]
[356491681,1742531437831,-974.8998323,0.00025993,2]
[356491682,1742531437843,-974.8998323,0.00025993,2]
[356491683,1742531437853,-974.8998323,0.00025993,2]
[356491684,1742531437862,-974.8998323,0.00025993,2]
[356491685,1742531437872,-974.8998323,0.00025993,2]
[356491686,1742531437882,-974.8998323,0.00025993,2]
[356491687,1742531437892,-974.8998323,0.00025993,2]
[356491688,1742531437902,-974.8998323,0.00025993,2]
[356491689,1742531438243,-974.8998323,0.00025993,2]
[356491690,1742531438253,-974.8998323,0.00025993,2]
[356491691,1742531438262,-974.8998323,0.00025993,2]
[356491692,1742531438271,-974.8998323,0.00025993,2]
[356491693,1742531438281,-498.91103297,0.00025993,2]
[356491694,1742531438294,-475.98879933,0.00025993,2]
[356491695,1742531438303,-974.8998323,0.00025993,2]
[356491696,1742531438313,-974.8998323,0.00025993,2]
[356491697,1742531438322,-974.8998323,0.00025993,2]
[356491698,1742531438332,-974.8998323,0.00025993,2]
[356491699,1742531438342,-974.8998323,0.00025993,2]
[356491700,1742531438351,-974.8998323,0.00025993,2]
[356491701,1742531438360,-283.36041027,0.00025993,2]
[356491702,1742531438419,-691.53942203,0.00025993,2]
[356491703,1742531438428,-974.8998323,0.00025993,2]
[356491704,1742531438438,-974.8998323,0.00025993,2]
[356491705,1742531438447,-974.8998323,0.00025993,2]
[356491706,1742531438456,-974.8998323,0.00025993,2]
[356491707,1742531438466,-974.8998323,0.00025993,2]
[356491708,1742531438477,-974.8998323,0.00025993,2]
[356491709,1742531438486,-974.8998323,0.00025993,2]
[356491710,1742531438496,-974.8998323,0.00025993,2]
[356491711,1742531438505,-974.8998323,0.00025993,2]
[356491712,1742531438514,-974.8998323,0.00025993,2]
[356491713,1742531438523,-974.8998323,0.00025993,2]
[356491714,1742531438534,-974.8998323,0.00025993,2]
[356491715,1742531438543,-974.8998323,0.00025993,2]
[356491716,1742531438554,-974.8998323,0.00025993,2]
[356491717,1742531438563,-974.8998323,0.00025993,2]
[356491718,1742531438573,-974.8998323,0.00025993,2]
[356491719,1742531438583,-974.8998323,0.00025993,2]
[356491720,1742531438596,-974.8998323,0.00025993,2]
[356491721,1742531438611,-974.8998323,0.00025993,2]
[356491722,1742531438620,-974.8998323,0.00025993,2]
[356491723,1742531438630,-38972.20808985,0.00026,2]
[356491724,1742531438639,-151.0,0.00026,7]
[356491725,1742531438649,-151.0,0.00026,7]
[356491726,1742531438659,-500.0,0.00026,2]
[356491727,1742531438668,-151.0,0.00026,7]
[356491728,1742531438677,-500.0,0.00026,2]
[356491729,1742531438687,-151.0,0.00026,7]
[356491730,1742531438696,-160.223701,0.00026,7]
[356491731,1742531438706,-151.0,0.00026,7]
[356491732,1742531438715,-287.0,0.00026139,2]
[356491733,1742531438724,-499.04438425,0.00026467,2]
[356491734,1742531438733,-500.0,0.00026467,2]
[356491735,1742531438743,-250.0,0.000268,30]
[356491736,1742531438752,-834.1406796,0.00027,3]
[356491737,1742531438762,-454.86332637,0.00027191,2]
[356491738,1742531438771,-500.0,0.00027397,2]
[356491739,1742531438780,-500.0,0.00027397,2]
[356491740,1742531438790,-500.0,0.00027397,2]
[356491741,1742531438803,-500.0,0.00027397,2]
[356491742,1742531438813,-500.0,0.00027397,2]
[356491743,1742531438822,-500.0,0.00027397,2]
[356491744,1742531438832,-500.0,0.00027397,2]
[356491745,1742531438844,-500.0,0.00027397,2]
[356491746,1742531438853,-500.0,0.00027397,2]
[356491747,1742531438863,-624.36700894,0.00027397,2]
[356491748,1742531438875,-500.0,0.00027397,2]
[356491749,1742531438885,-500.0,0.00027397,2]
[356491750,1742531438894,-500.0,0.00027397,2]
[356491751,1742531438903,-500.0,0.00027397,2]
[356491752,1742531438913,-500.0,0.00027397,2]
[356491753,1742531438922,-500.0,0.00027397,2]
[356491754,1742531438931,-500.0,0.00027397,2]
[356491755,1742531438941,-500.0,0.00027397,2]
[356491756,1742531438951,-500.0,0.00027397,2]
[356491757,1742531438962,-500.0,0.00027397,2]
[356491758,1742531438971,-500.0,0.00027397,2]
[356491759,1742531438981,-500.0,0.00027397,2]
[356491760,1742531438991,-500.0,0.00027397,2]
[356491761,1742531439000,-500.0,0.00027397,2]
[356491762,1742531439010,-500.0,0.00027397,2]
[356491763,1742531439021,-500.0,0.00027397,2]
[356491764,1742531439030,-500.0,0.00027397,2]
[356491765,1742531439040,-500.0,0.00027397,2]
[356491766,1742531439049,-500.0,0.000274,5]
[356491767,1742531439059,-500.0,0.000274,5]
[356491768,1742531439068,-500.0,0.000274,5]
[356491769,1742531439077,-500.0,0.000274,5]
[356491770,1742531439086,-500.0,0.000274,5]
[356491771,1742531439096,-500.0,0.000274,5]
[356491772,1742531439105,-500.0,0.000274,5]
[356491773,1742531439114,-500.0,0.000274,5]
[356491774,1742531439123,-500.0,0.000274,5]
[356491775,1742531439132,-500.0,0.000274,5]
[356491776,1742531439142,-500.0,0.000274,5]
[356491777,1742531439152,-500.0,0.000274,5]
[356491778,1742531439162,-500.0,0.0002788,5]
[356491779,1742531439171,-500.0,0.0002788,5]
[356491780,1742531439180,-500.0,0.0002788,5]
[356491781,1742531439190,-500.0,0.0002788,5]
[356491782,1742531439200,-500.0,0.0002788,5]
[356491783,1742531439209,-1146.036506,0.00028,4]
[356491784,1742531439219,-234.58465996,0.00028,7]
[356491785,1742531439228,-151.0,0.00028,7]
[356491786,1742531439237,-195.81625952,0.00028002,2]
[356491787,1742531439247,-454.86332637,0.00028487,2]
[356491788,1742531439256,-154.441178,0.00028488,7]
[356491789,1742531439265,-151.0,0.00028488,7]
[356491790,1742531439275,-250.0,0.000288,30]
[356491791,1742531439285,-160.0,0.0002925,2]
[356491792,1742531439295,-418.02116171,0.0002925,2]
[356491793,1742531439304,-834.1406796,0.0002925,2]
[356491794,1742531439315,-160.0,0.0002925,2]
[356491795,1742531439324,-12458.93820146,0.0002925,2]
[356491796,1742531439334,-454.86332637,0.00029783,2]
[356491797,1742531439345,-151.0,0.00029982,2]
[356491798,1742531439356,-300.85867896,0.0002999,2]
[356491799,1742531439366,-12990.70483247,0.0003,2]
[356491800,1742531439379,-146457.62406584,0.0003,2]
[356491801,1742531439398,-3855.29718945,0.0003,2]
[356491802,1742531439409,-3345.74423928,0.0003,2]
[356491806,1742531440262,-3262.59799749,0.0003,2]
[356491807,1742531440281,-145684.7469108,0.0003,2]
[356491808,1742531440293,-21721.15577467,0.0003,2]
[356491809,1742531440302,-151.0,0.0003,7]
[356491810,1742531440312,-195.81625952,0.0003011,2]
[356491811,1742531440323,-156.587,0.0003053,2]
[356491812,1742531440332,-3000.0,0.00030658,2]
[356491813,1742531440343,-2265.0,0.00030758,2]
[356491814,1742531440352,-250.0,0.000308,30]
[356491815,1742531440362,-264.80598444,0.00031078,2]
[356491816,1742531440371,-454.86332637,0.0003108,2]
[356491817,1742531440381,-484.0,0.0003137,6]
[356491818,1742531440391,-1000.0,0.00031479,5]
[356491819,1742531440400,-1000.0,0.00031479,5]
[356491820,1742531440410,-150.0,0.00031649,2]
[356491821,1742531440420,-659.9197664,0.00031889,4]
[356491822,1742531440430,-205.35,0.000319,30]
[356491823,1742531440440,-1000.0,0.00031946,5]
[356491824,1742531440449,-676.99,0.00032,7]
[356491825,1742531440459,-300.41,0.00032,7]
[356491826,1742531440469,-151.0,0.00032213,7]
[356491827,1742531440479,-454.86332637,0.00032376,2]
[356491828,1742531440489,-975.5,0.00032453,30]
[356491829,1742531440498,-10348.94836536,0.0003249,2]
[356491830,1742531440508,-8327.65077835,0.0003249,2]
[356491831,1742531440520,-479.93791128,0.0003249,2]
[356491849,1742531445854,-150.597,0.0003047,2]
[356491850,1742531445864,-1541.35967573,0.0003249,2]
[356491851,1742531445875,-10348.94836536,0.0003249,2]
[356491852,1742531445884,-10348.94836536,0.0003249,2]
[356491853,1742531445894,-10348.94836536,0.0003249,2]
[356491854,1742531445903,-10348.94836536,0.0003249,2]
[356491855,1742531445913,-10348.94836536,0.0003249,2]
[356491856,1742531445922,-10348.94836536,0.0003249,2]
[356491857,1742531445931,-10348.94836536,0.0003249,2]
[356491858,1742531445941,-10348.94836536,0.0003249,2]
[356491859,1742531445951,-237.59413,0.0003249,7]
[356491860,1742531445961,-173.234886,0.0003249,7]
[356491861,1742531445971,-1496.06,0.000325,25]
[356491862,1742531445980,-1942.42715466,0.00032547,2]
[356491863,1742531445990,-800.0,0.00032645,2]
[356491864,1742531446000,-300.85867896,0.00032666,2]
[356491865,1742531446009,-222000.0,0.00032676,2]
[356491866,1742531446018,-800.0,0.0003276,2]
[356491867,1742531446028,-800.0,0.00032786,2]
[356491868,1742531446038,-300.0,0.000328,16]
[356491869,1742531446047,-250.0,0.000328,30]
[356491870,1742531446056,-284.75059687,0.00032862,2]
[356491871,1742531446065,-500.0,0.0003287,15]
[356491872,1742531446075,-500.0,0.00032873,5]
[356491873,1742531446083,-500.0,0.00032873,5]
[356491874,1742531446093,-489.78065293,0.00032873,5]
[356491875,1742531446102,-161.75256143,0.00032873,5]
[356491876,1742531446111,-500.0,0.00032873,5]
[356491877,1742531446121,-164.53164693,0.00032873,5]
[356491878,1742531446131,-301.38725289,0.00032873,5]
[356491879,1742531446141,-500.0,0.00032873,5]
[356491880,1742531446151,-200.24925633,0.00032873,5]
[356491881,1742531446161,-500.0,0.00032873,5]
[356491882,1742531446171,-500.0,0.00032873,5]
[356491883,1742531446180,-500.0,0.00032873,5]
[356491884,1742531446189,-500.0,0.00032873,5]
[356491885,1742531446198,-501.6442294,0.00032873,5]
[356491886,1742531446207,-500.0,0.00032873,5]
[356491887,1742531446216,-500.0,0.00032873,5]
[356491888,1742531446225,-500.0,0.00032873,5]
[356491889,1742531446235,-500.0,0.00032873,5]
[356491890,1742531446244,-500.0,0.00032873,5]
[356491891,1742531446253,-500.0,0.00032873,5]
[356491892,1742531446263,-500.0,0.00032873,5]
[356491893,1742531446272,-500.0,0.00032873,5]
[356491894,1742531446282,-500.0,0.00032875,2]
[356491895,1742531446292,-169.13,0.00032876,2]
[356491896,1742531446302,-169.13,0.00032876,2]
[356491897,1742531446312,-169.13,0.00032876,2]
[356491898,1742531446322,-169.13,0.00032876,2]
[356491899,1742531446331,-169.13,0.00032876,2]
[356491900,1742531446341,-169.17012834,0.00032876,2]
[356491901,1742531446351,-500.0,0.00032876,21]
[356491902,1742531446360,-486.99829919,0.00032876,21]
[356491903,1742531446369,-500.0,0.00032876,21]
[356491904,1742531446379,-500.0,0.00032876,21]
[356491905,1742531446388,-500.0,0.00032876,21]
[356491906,1742531446397,-500.0,0.00032876,21]
[356491907,1742531446406,-781.7,0.00032876,21]
[356491908,1742531446416,-500.0,0.00032876,21]
[356491909,1742531446425,-579.93,0.00032876,21]
[356491910,1742531446435,-500.0,0.00032876,21]
[356491911,1742531446444,-500.0,0.00032876,21]
[356491912,1742531446453,-500.0,0.00032876,7]
[356491913,1742531446463,-500.0,0.00032876,21]
[356491914,1742531446472,-500.0,0.00032876,21]
[356491915,1742531446482,-874.99,0.00032876,21]
[356491916,1742531446491,-676.6,0.00032876,21]
[356491917,1742531446500,-500.0,0.00032876,21]
[356491918,1742531446510,-500.0,0.00032876,21]
[356491919,1742531446519,-500.0,0.00032876,21]
[356491920,1742531446528,-531.07,0.00032876,21]
[356491921,1742531446537,-500.0,0.00032876,21]
[356491922,1742531446547,-538.93,0.00032876,21]
[356491923,1742531446556,-500.0,0.00032876,21]
[356491924,1742531446567,-500.0,0.00032876,21]
[356491925,1742531446576,-1137.62,0.00032876,21]
[356491926,1742531446585,-500.0,0.00032876,21]
[356491927,1742531446594,-500.0,0.00032876,21]
[356491928,1742531446604,-692.75,0.00032876,21]
[356491929,1742531446613,-585.19,0.00032876,21]
[356491930,1742531446622,-500.0,0.00032876,21]
[356491931,1742531446631,-500.0,0.00032876,21]
[356491932,1742531446640,-508.32,0.00032876,21]
[356491933,1742531446649,-500.0,0.00032876,21]
[356491934,1742531446658,-500.0,0.00032876,21]
[356491935,1742531446667,-500.0,0.00032876,21]
[356491936,1742531446677,-500.0,0.00032876,21]
[356491937,1742531446686,-500.0,0.00032876,21]
[356491938,1742531446695,-485.82589591,0.00032876,21]
[356491939,1742531446704,-500.0,0.00032876,21]
[356491940,1742531446713,-500.0,0.00032876,21]
[356491941,1742531446722,-714.31,0.00032876,21]
[356491942,1742531446732,-200.0,0.00032876,7]
[356491943,1742531446741,-206.16178636,0.00032876,21]
[356491944,1742531446751,-500.0,0.00032876,21]
[356491945,1742531446760,-558.81,0.00032876,21]
[356491946,1742531446769,-1150.99,0.00032876,21]
[356491947,1742531446779,-500.0,0.00032876,21]
[356491948,1742531446788,-500.0,0.00032876,21]
[356491949,1742531446800,-500.0,0.00032876,21]
[356491950,1742531446809,-500.0,0.00032876,21]
[356491951,1742531446818,-500.0,0.00032876,21]
[356491952,1742531446827,-671.87,0.00032876,21]
[356491953,1742531446837,-642.67,0.00032876,21]
[356491954,1742531446847,-440.44988333,0.00032876,21]
[356491955,1742531446856,-500.0,0.00032876,21]
[356491956,1742531446870,-500.0,0.00032876,21]
[356491957,1742531446879,-664.15,0.00032876,21]
[356491958,1742531446889,-881.88,0.00032876,21]
[356491959,1742531446900,-1692.88,0.00032876,21]
[356491960,1742531446910,-500.0,0.00032876,21]
[356491961,1742531446919,-500.0,0.00032876,21]
[356491962,1742531446929,-500.0,0.00032876,21]
[356491963,1742531446938,-500.0,0.00032876,21]
[356491964,1742531446947,-636.98,0.00032876,21]
[356491965,1742531446957,-500.0,0.00032876,21]
[356491966,1742531446966,-576.41,0.00032876,21]
[356491967,1742531446976,-552.15,0.00032876,21]
[356491968,1742531446986,-500.0,0.00032876,21]
[356491969,1742531446995,-747.92,0.00032876,21]
[356491970,1742531447005,-500.0,0.00032876,21]
[356491971,1742531447014,-1187.63,0.00032876,21]
[356491972,1742531447023,-500.0,0.00032876,21]
[356491973,1742531447036,-500.0,0.00032876,21]
[356491974,1742531447045,-1508.18,0.00032876,21]
[356491975,1742531447055,-500.0,0.00032876,21]
[356491976,1742531447064,-500.0,0.00032876,7]
[356491977,1742531447073,-508.67,0.00032876,21]
[356491978,1742531447082,-500.0,0.00032876,21]
[356491979,1742531447092,-1011.54,0.00032876,21]
[356491980,1742531447101,-500.0,0.00032876,21]
[356491981,1742531447110,-500.0,0.00032876,21]
[356491982,1742531447120,-693.63,0.00032876,21]
[356491983,1742531447129,-500.0,0.00032876,120]
[356491984,1742531447139,-622.7,0.00032876,21]